[Event "*** Titled Tuesday 3|2 Blitz"]
[Site "Chess.com"]
[Date "2015.12.01"]
[Round "1"]
[White "bugsbunny444"]
[Black "Colombiano07"]
[Result "1-0"]
[WhiteElo "2355"]
[BlackElo "2103"]
[TimeControl "180+2"]
[EndTime "17:03:49 PST"]
[Termination "bugsbunny444 won by resignation"]

1. Nf3 {[%clk 0:02:59.5]} 1... g6 {[%clk 0:03:01.9]} 2. e4 {[%clk 0:03:00.3]}
2... Bg7 {[%clk 0:03:03.8]} 3. d4 {[%clk 0:03:02]} 3... c5 {[%clk 0:03:05.1]} 4.
dxc5 {[%clk 0:03:02.8]} 4... Qa5+ {[%clk 0:03:04.7]} 5. Nc3 {[%clk 0:03:01.7]}
5... Qxc5 {[%clk 0:03:04.1]} 6. Nd5 {[%clk 0:03:01.6]} 6... b6 {[%clk
0:02:52.6]} 7. Be3 {[%clk 0:02:59.4]} 7... Qc6 {[%clk 0:02:52.1]} 8. Bb5 {[%clk
0:02:53.2]} 8... Qb7 {[%clk 0:02:53.1]} 9. Bd4 {[%clk 0:02:45]} 9... Nf6 {[%clk
0:02:34]} 10. Nxf6+ {[%clk 0:02:33.4]} 10... Bxf6 {[%clk 0:02:30.7]} 11. Bxf6
{[%clk 0:02:25.2]} 11... Qxe4+ {[%clk 0:02:27.8]} 12. Kf1 {[%clk 0:01:53.3]}
12... exf6 {[%clk 0:02:27.4]} 13. Qd6 {[%clk 0:01:53.8]} 13... Kd8 {[%clk
0:01:56.5]} 14. Qxf6+ {[%clk 0:01:46.9]} 14... Kc7 {[%clk 0:01:57.5]} 15. Qxh8
{[%clk 0:01:41.6]} 1-0

[Event "*** Titled Tuesday 3|2 Blitz"]
[Site "Chess.com"]
[Date "2015.12.01"]
[Round "1"]
[White "dretch"]
[Black "Thomaslegend"]
[Result "1-0"]
[WhiteElo "2411"]
[BlackElo "2125"]
[TimeControl "180+2"]
[EndTime "17:05:07 PST"]
[Termination "dretch won by resignation"]

1. d4 {[%clk 0:02:45.1]} 1... Nf6 {[%clk 0:02:59.5]} 2. c4 {[%clk 0:02:45.8]}
2... g6 {[%clk 0:03:00.7]} 3. Nc3 {[%clk 0:02:46.4]} 3... d5 {[%clk 0:03:02]} 4.
Bf4 {[%clk 0:02:44.9]} 4... Bg7 {[%clk 0:03:01.6]} 5. e3 {[%clk 0:02:44.6]} 5...
O-O {[%clk 0:03:02.7]} 6. Rc1 {[%clk 0:02:45.4]} 6... Be6 {[%clk 0:03:03.6]} 7.
c5 {[%clk 0:02:46]} 7... c6 {[%clk 0:03:04.3]} 8. Bd3 {[%clk 0:02:46.1]} 8...
Bc8 {[%clk 0:03:00.4]} 9. h3 {[%clk 0:02:41.7]} 9... Nfd7 {[%clk 0:02:59.4]} 10.
Bg5 {[%clk 0:02:39.1]} 10... Re8 {[%clk 0:02:46.5]} 11. Nf3 {[%clk 0:02:34.3]}
11... Qc7 {[%clk 0:02:41.2]} 12. O-O {[%clk 0:02:23.4]} 12... e5 {[%clk
0:02:40.8]} 13. dxe5 {[%clk 0:02:24.1]} 13... Nxe5 {[%clk 0:02:41.8]} 14. Bf4
{[%clk 0:02:23.3]} 14... Qe7 {[%clk 0:02:19.8]} 15. Nxe5 {[%clk 0:02:13]} 15...
Bxe5 {[%clk 0:02:21.7]} 16. Bxe5 {[%clk 0:02:14.9]} 16... Qxe5 {[%clk
0:02:21.8]} 17. e4 {[%clk 0:02:14.1]} 17... d4 {[%clk 0:02:07.1]} 18. Ne2 {[%clk
0:02:15.4]} 18... Be6 {[%clk 0:01:49.3]} 19. f4 {[%clk 0:02:14.8]} 19... Qg7
{[%clk 0:01:49]} 20. f5 {[%clk 0:02:14.6]} 20... gxf5 {[%clk 0:01:34.5]} 21.
exf5 {[%clk 0:02:15.1]} 21... Bxa2 {[%clk 0:01:29.3]} 22. Rf4 {[%clk 0:02:11.6]}
22... Qe5 {[%clk 0:01:20.4]} 23. Re4 {[%clk 0:02:11.8]} 23... Qxe4 {[%clk
0:01:21.3]} 24. Bxe4 {[%clk 0:02:13]} 24... Rxe4 {[%clk 0:01:23.2]} 25. Ng3
{[%clk 0:02:12.7]} 25... Rf4 {[%clk 0:01:15.6]} 26. Qd2 {[%clk 0:02:10.1]} 1-0

[Event "*** Titled Tuesday 3|2 Blitz"]
[Site "Chess.com"]
[Date "2015.12.01"]
[Round "1"]
[White "HustleStandard"]
[Black "Carolina-moon"]
[Result "1-0"]
[WhiteElo "2352"]
[BlackElo "2045"]
[TimeControl "180+2"]
[EndTime "17:05:15 PST"]
[Termination "HustleStandard won by resignation"]

1. d4 {[%clk 0:01:53.2]} 1... f5 {[%clk 0:03:00.2]} 2. Nf3 {[%clk 0:01:55.1]}
2... Nf6 {[%clk 0:03:01.1]} 3. c4 {[%clk 0:01:56.7]} 3... g6 {[%clk 0:03:02.5]}
4. Nc3 {[%clk 0:01:58.2]} 4... Bg7 {[%clk 0:03:04]} 5. Bf4 {[%clk 0:01:59.7]}
5... d6 {[%clk 0:03:04.9]} 6. e3 {[%clk 0:02:00.4]} 6... O-O {[%clk 0:03:05.5]}
7. Be2 {[%clk 0:02:01.1]} 7... Nc6 {[%clk 0:03:03.6]} 8. d5 {[%clk 0:01:43.2]}
8... e5 {[%clk 0:02:59]} 9. dxe6 {[%clk 0:01:37.9]} 9... Bxe6 {[%clk 0:02:59.4]}
10. O-O {[%clk 0:01:36.8]} 10... Nh5 {[%clk 0:02:57.5]} 11. Bg5 {[%clk
0:01:35.6]} 11... Qe8 {[%clk 0:02:54.4]} 12. Qc2 {[%clk 0:01:29.5]} 12... Qf7
{[%clk 0:02:46.1]} 13. Bh4 {[%clk 0:01:20.3]} 13... h6 {[%clk 0:02:45.1]} 14.
Nd5 {[%clk 0:01:14.6]} 14... g5 {[%clk 0:02:40.5]} 15. Bg3 {[%clk 0:01:15.6]}
15... Nxg3 {[%clk 0:02:39]} 16. hxg3 {[%clk 0:01:15.9]} 16... Ne5 {[%clk
0:02:33.2]} 17. Nd4 {[%clk 0:01:14.7]} 17... c6 {[%clk 0:02:27.4]} 18. Nxe6
{[%clk 0:01:14.2]} 18... Qxe6 {[%clk 0:02:27.3]} 19. Nc7 {[%clk 0:01:15.3]}
19... Qf6 {[%clk 0:02:23.5]} 20. Nxa8 {[%clk 0:01:16.5]} 20... Rxa8 {[%clk
0:02:25.1]} 21. f4 {[%clk 0:01:15.7]} 21... gxf4 {[%clk 0:02:18.5]} 22. gxf4
{[%clk 0:01:17.6]} 22... Nd7 {[%clk 0:02:16.2]} 23. Rad1 {[%clk 0:01:17.5]}
23... Nc5 {[%clk 0:02:16.7]} 24. Bd3 {[%clk 0:01:10.2]} 24... Re8 {[%clk
0:02:11.8]} 25. Rf3 {[%clk 0:01:08.2]} 25... Qf7 {[%clk 0:01:57.5]} 26. Bxf5
{[%clk 0:01:06.4]} 26... a5 {[%clk 0:01:49.2]} 27. Bg6 {[%clk 0:01:06.1]} 1-0

[Event "*** Titled Tuesday 3|2 Blitz"]
[Site "Chess.com"]
[Date "2015.12.01"]
[Round "1"]
[White "chessbia"]
[Black "kungmongmanh"]
[Result "0-1"]
[WhiteElo "2103"]
[BlackElo "2388"]
[TimeControl "180+2"]
[EndTime "17:05:26 PST"]
[Termination "kungmongmanh won by resignation"]

1. d4 {[%clk 0:02:58.3]} 1... d5 {[%clk 0:03:00.6]} 2. c4 {[%clk 0:02:51.4]}
2... c6 {[%clk 0:03:01.8]} 3. cxd5 {[%clk 0:02:51.7]} 3... cxd5 {[%clk
0:03:02.7]} 4. Bf4 {[%clk 0:02:53.1]} 4... a6 {[%clk 0:03:03.5]} 5. Nc3 {[%clk
0:02:48.8]} 5... Nc6 {[%clk 0:03:04.6]} 6. e3 {[%clk 0:02:49.6]} 6... Nf6 {[%clk
0:03:05.4]} 7. Bd3 {[%clk 0:02:50.6]} 7... e6 {[%clk 0:03:05]} 8. Rc1 {[%clk
0:02:51.5]} 8... Bd6 {[%clk 0:03:05.7]} 9. Bxd6 {[%clk 0:02:52.1]} 9... Qxd6
{[%clk 0:03:07.6]} 10. f4 {[%clk 0:02:53.5]} 10... O-O {[%clk 0:03:08.6]} 11.
Nf3 {[%clk 0:02:54.6]} 11... b5 {[%clk 0:03:10.2]} 12. O-O {[%clk 0:02:52.7]}
12... Bb7 {[%clk 0:03:11.4]} 13. Ne5 {[%clk 0:02:53.5]} 13... Rac8 {[%clk
0:03:10.4]} 14. Qf3 {[%clk 0:02:50.8]} 14... Na5 {[%clk 0:03:00]} 15. g4 {[%clk
0:02:45.1]} 15... Nc4 {[%clk 0:02:45.2]} 16. Qh3 {[%clk 0:02:36]} 16... Nxb2
{[%clk 0:02:35.6]} 17. Bb1 {[%clk 0:02:31.5]} 17... Ne4 {[%clk 0:02:36.2]} 18.
Nxe4 {[%clk 0:02:25]} 18... dxe4 {[%clk 0:02:38.1]} 19. Qg2 {[%clk 0:02:23.8]}
19... Na4 {[%clk 0:02:33.4]} 20. Bxe4 {[%clk 0:02:20.7]} 20... Bxe4 {[%clk
0:02:28.9]} 21. Qxe4 {[%clk 0:02:22.6]} 21... Nc3 {[%clk 0:02:21.8]} 22. Qg2
{[%clk 0:02:14.4]} 22... Nd5 {[%clk 0:02:18.9]} 23. Qd2 {[%clk 0:02:11.4]} 23...
Qa3 {[%clk 0:02:15.8]} 24. Kf2 {[%clk 0:02:04.4]} 24... Nc3 {[%clk 0:02:07.4]}
25. Kf3 {[%clk 0:02:00.5]} 25... b4 {[%clk 0:01:53.4]} 26. Rc2 {[%clk
0:01:57.9]} 26... a5 {[%clk 0:01:54.1]} 27. Nd7 {[%clk 0:01:57.1]} 27... Rfd8
{[%clk 0:01:53.6]} 28. Nb6 {[%clk 0:01:57.8]} 28... Rc6 {[%clk 0:01:52.1]} 29.
Rb1 {[%clk 0:01:30.6]} 29... Rxb6 {[%clk 0:01:49.4]} 30. Rxc3 {[%clk 0:01:29.7]}
30... bxc3 {[%clk 0:01:49]} 31. Qc2 {[%clk 0:01:26.7]} 31... Rxb1 {[%clk
0:01:48.5]} 0-1

[Event "*** Titled Tuesday 3|2 Blitz"]
[Site "Chess.com"]
[Date "2015.12.01"]
[Round "1"]
[White "StellarChessPro"]
[Black "norwaytoadog"]
[Result "1-0"]
[WhiteElo "2264"]
[BlackElo "1908"]
[TimeControl "180+2"]
[EndTime "17:05:54 PST"]
[Termination "StellarChessPro won by resignation"]

1. d4 {[%clk 0:03:01.9]} 1... Nf6 {[%clk 0:02:59.9]} 2. Bg5 {[%clk 0:03:02.7]}
2... d5 {[%clk 0:02:58.1]} 3. Nd2 {[%clk 0:03:02.6]} 3... c6 {[%clk 0:02:58.7]}
4. Ngf3 {[%clk 0:03:03.1]} 4... Bf5 {[%clk 0:02:59.1]} 5. e3 {[%clk 0:03:03.9]}
5... Nbd7 {[%clk 0:02:58.6]} 6. c4 {[%clk 0:03:05.1]} 6... e6 {[%clk 0:02:58.4]}
7. Be2 {[%clk 0:03:02.1]} 7... Be7 {[%clk 0:02:59]} 8. O-O {[%clk 0:03:03.2]}
8... h6 {[%clk 0:02:59.2]} 9. Bf4 {[%clk 0:03:03.8]} 9... O-O {[%clk 0:02:58.4]}
10. Rc1 {[%clk 0:03:03]} 10... Bh7 {[%clk 0:02:51]} 11. Qb3 {[%clk 0:03:03.3]}
11... Qc8 {[%clk 0:02:43.5]} 12. Ne5 {[%clk 0:02:58]} 12... Nxe5 {[%clk
0:02:40.3]} 13. Bxe5 {[%clk 0:02:55.5]} 13... Nd7 {[%clk 0:02:37.4]} 14. Bg3
{[%clk 0:02:54.6]} 14... Nb6 {[%clk 0:02:31.1]} 15. Bf3 {[%clk 0:02:44.3]} 15...
Qd7 {[%clk 0:02:29]} 16. a4 {[%clk 0:02:33.3]} 16... dxc4 {[%clk 0:02:19.6]} 17.
Nxc4 {[%clk 0:02:33.5]} 17... Nxc4 {[%clk 0:02:19.3]} 18. Rxc4 {[%clk
0:02:31.4]} 18... Bd8 {[%clk 0:01:42]} 19. h3 {[%clk 0:02:28.9]} 19... Ba5
{[%clk 0:01:34.7]} 20. Rfc1 {[%clk 0:02:26.3]} 20... Rac8 {[%clk 0:01:32]} 21.
Qa3 {[%clk 0:02:24]} 21... Bc7 {[%clk 0:01:29]} 22. Bxc7 {[%clk 0:02:22.9]}
22... Rxc7 {[%clk 0:01:26.4]} 23. b4 {[%clk 0:02:24.8]} 23... Rcc8 {[%clk
0:01:21.7]} 24. Qc3 {[%clk 0:02:22]} 24... Rcd8 {[%clk 0:01:21.1]} 25. Rc5
{[%clk 0:02:17.5]} 25... Qd6 {[%clk 0:01:14.7]} 26. b5 {[%clk 0:02:17.2]} 26...
cxb5 {[%clk 0:01:14.1]} 27. axb5 {[%clk 0:02:16.2]} 27... Rfe8 {[%clk
0:01:11.5]} 28. Bxb7 {[%clk 0:02:08.7]} 28... Bg6 {[%clk 0:00:54.2]} 29. Bc6
{[%clk 0:02:09.6]} 29... Re7 {[%clk 0:00:53.7]} 30. Qa3 {[%clk 0:02:09.3]} 30...
Kh7 {[%clk 0:00:52.4]} 31. R5c3 {[%clk 0:02:10.4]} 31... Qb8 {[%clk 0:00:49.6]}
32. Qxe7 {[%clk 0:02:05.7]} 1-0

[Event "*** Titled Tuesday 3|2 Blitz"]
[Site "Chess.com"]
[Date "2015.12.01"]
[Round "1"]
[White "ilmago"]
[Black "Chakraborty-ARZ"]
[Result "0-1"]
[WhiteElo "1923"]
[BlackElo "2282"]
[TimeControl "180+2"]
[EndTime "17:06:05 PST"]
[Termination "Chakraborty-ARZ won by resignation"]

1. e4 {[%clk 0:02:47.8]} 1... c6 {[%clk 0:02:59.2]} 2. d4 {[%clk 0:02:46.6]}
2... d5 {[%clk 0:02:59.4]} 3. Nc3 {[%clk 0:02:47.6]} 3... dxe4 {[%clk 0:02:59]}
4. Nxe4 {[%clk 0:02:49.1]} 4... Bf5 {[%clk 0:03:00.6]} 5. Ng3 {[%clk 0:02:49.9]}
5... Bg6 {[%clk 0:03:02.1]} 6. h4 {[%clk 0:02:51.2]} 6... h6 {[%clk 0:03:02.8]}
7. Nf3 {[%clk 0:02:52.1]} 7... Nd7 {[%clk 0:03:02.9]} 8. h5 {[%clk 0:02:52.9]}
8... Bh7 {[%clk 0:03:03.9]} 9. Bd3 {[%clk 0:02:53.9]} 9... Bxd3 {[%clk
0:03:05.3]} 10. Qxd3 {[%clk 0:02:55.8]} 10... e6 {[%clk 0:03:07.2]} 11. Bf4
{[%clk 0:02:45.8]} 11... Qa5+ {[%clk 0:03:07.6]} 12. Bd2 {[%clk 0:02:43]} 12...
Bb4 {[%clk 0:03:08.3]} 13. c3 {[%clk 0:02:42.7]} 13... Be7 {[%clk 0:03:09.9]}
14. Ne4 {[%clk 0:02:34.9]} 14... Ngf6 {[%clk 0:03:04.8]} 15. c4 {[%clk
0:02:25.5]} 15... Qc7 {[%clk 0:03:05.1]} 16. O-O-O {[%clk 0:02:18.7]} 16... Nxe4
{[%clk 0:02:57.6]} 17. Qxe4 {[%clk 0:02:18.8]} 17... Nf6 {[%clk 0:02:58.9]} 18.
Qe2 {[%clk 0:02:17.2]} 18... b5 {[%clk 0:02:59.6]} 19. Ne5 {[%clk 0:02:12.3]}
19... O-O {[%clk 0:02:58.8]} 20. Bf4 {[%clk 0:02:04.6]} 20... Qb7 {[%clk
0:02:55.4]} 21. Rh3 {[%clk 0:01:50.3]} 21... bxc4 {[%clk 0:02:55.8]} 22. Qxc4
{[%clk 0:01:43.7]} 22... Nd5 {[%clk 0:02:56.7]} 23. Bd2 {[%clk 0:01:38.7]} 23...
c5 {[%clk 0:02:56.8]} 24. Rg3 {[%clk 0:01:22]} 24... Kh8 {[%clk 0:02:51.1]} 25.
Kb1 {[%clk 0:01:09.9]} 25... Rab8 {[%clk 0:02:51.7]} 26. Qc1 {[%clk 0:01:07.9]}
26... cxd4 {[%clk 0:02:48.8]} 27. Bxh6 {[%clk 0:01:05]} 27... Bf6 {[%clk
0:02:47.8]} 28. Ng4 {[%clk 0:00:57.8]} 28... Nc3+ {[%clk 0:02:22.7]} 29. Rxc3
{[%clk 0:00:50.2]} 29... dxc3 {[%clk 0:02:20.9]} 30. Nxf6 {[%clk 0:00:50.3]}
30... Qxb2+ {[%clk 0:02:20.9]} 31. Qxb2 {[%clk 0:00:50]} 31... Rxb2+ {[%clk
0:02:22.8]} 32. Kc1 {[%clk 0:00:43.4]} 32... gxh6 {[%clk 0:02:24.4]} 33. Ng4
{[%clk 0:00:41.2]} 33... Rxa2 {[%clk 0:02:19.1]} 34. Rd3 {[%clk 0:00:41.6]}
34... Rc8 {[%clk 0:02:15.4]} 35. Nxh6 {[%clk 0:00:41]} 35... Kg7 {[%clk
0:02:16.6]} 36. Ng4 {[%clk 0:00:42.1]} 36... c2 {[%clk 0:02:17.9]} 37. Ne3
{[%clk 0:00:39.2]} 37... Ra1+ {[%clk 0:02:18]} 0-1

[Event "*** Titled Tuesday 3|2 Blitz"]
[Site "Chess.com"]
[Date "2015.12.01"]
[Round "1"]
[White "Fh2411"]
[Black "the_drake"]
[Result "0-1"]
[WhiteElo "2288"]
[BlackElo "1991"]
[TimeControl "180+2"]
[EndTime "17:06:48 PST"]
[Termination "the_drake won by checkmate"]

1. e4 {[%clk 0:02:55.7]} 1... e5 {[%clk 0:02:55.2]} 2. Nf3 {[%clk 0:02:55.7]}
2... Nc6 {[%clk 0:02:56.3]} 3. Bc4 {[%clk 0:02:56.6]} 3... Bc5 {[%clk
0:02:56.3]} 4. c3 {[%clk 0:02:57.8]} 4... Nf6 {[%clk 0:02:56.7]} 5. d3 {[%clk
0:02:59]} 5... a6 {[%clk 0:02:53.3]} 6. O-O {[%clk 0:02:59.2]} 6... h6 {[%clk
0:02:52.5]} 7. d4 {[%clk 0:02:57.2]} 7... Bd6 {[%clk 0:02:44.8]} 8. dxe5 {[%clk
0:02:45.5]} 8... Bxe5 {[%clk 0:02:45]} 9. Bd5 {[%clk 0:02:37.7]} 9... Qe7 {[%clk
0:02:33.7]} 10. Re1 {[%clk 0:02:27.1]} 10... Nd8 {[%clk 0:02:32.7]} 11. Bb3
{[%clk 0:02:17.1]} 11... O-O {[%clk 0:02:27.4]} 12. Nxe5 {[%clk 0:02:17.8]}
12... Qxe5 {[%clk 0:02:27.9]} 13. f4 {[%clk 0:02:18]} 13... Qh5 {[%clk
0:02:25.7]} 14. e5 {[%clk 0:02:14.7]} 14... Qxd1 {[%clk 0:02:24.8]} 15. Rxd1
{[%clk 0:02:15.7]} 15... Ne4 {[%clk 0:02:24.4]} 16. Be3 {[%clk 0:02:15]} 16...
Ne6 {[%clk 0:02:17.1]} 17. Nd2 {[%clk 0:02:13]} 17... Nxd2 {[%clk 0:02:15.6]}
18. Rxd2 {[%clk 0:02:13.2]} 18... Nd8 {[%clk 0:02:11.7]} 19. Rad1 {[%clk
0:02:11.2]} 19... Nc6 {[%clk 0:02:12.4]} 20. Bd5 {[%clk 0:02:03.8]} 20... Ne7
{[%clk 0:02:10.2]} 21. Be4 {[%clk 0:02:03.8]} 21... f5 {[%clk 0:02:08.4]} 22.
Bf3 {[%clk 0:01:57.4]} 22... Kf7 {[%clk 0:02:04.7]} 23. Rxd7 {[%clk 0:01:46.2]}
23... Bxd7 {[%clk 0:02:04.5]} 24. Rxd7 {[%clk 0:01:48.1]} 24... Ke6 {[%clk
0:01:42.1]} 25. Rxc7 {[%clk 0:01:46.7]} 25... Nd5 {[%clk 0:01:41.8]} 26. Bxd5+
{[%clk 0:01:42.8]} 26... Kxd5 {[%clk 0:01:43.7]} 27. Rxg7 {[%clk 0:01:43.2]}
27... Ke4 {[%clk 0:01:44]} 28. Kf2 {[%clk 0:01:43.5]} 28... b5 {[%clk
0:01:41.8]} 29. g3 {[%clk 0:01:35.5]} 29... Rad8 {[%clk 0:01:42.1]} 30. Bd4
{[%clk 0:01:35.7]} 30... b4 {[%clk 0:01:40.4]} 31. Rg6 {[%clk 0:01:34.9]} 31...
bxc3 {[%clk 0:01:40.6]} 32. Bxc3 {[%clk 0:01:30.9]} 32... Rd3 {[%clk 0:01:40.1]}
33. Rxa6 {[%clk 0:01:31.6]} 33... Rf3+ {[%clk 0:01:35.5]} 34. Kg2 {[%clk
0:01:32.7]} 34... Rd3 {[%clk 0:01:30.3]} 35. Rxh6 {[%clk 0:01:31.1]} 35... Ra8
{[%clk 0:01:28.5]} 36. a3 {[%clk 0:01:32]} 36... Rd1 {[%clk 0:01:29]} 37. Rb6
{[%clk 0:01:30.6]} 37... Rc1 {[%clk 0:01:27.3]} 38. Rb4+ {[%clk 0:01:28.8]}
38... Ke3 {[%clk 0:01:27.2]} 39. e6 {[%clk 0:01:29.2]} 39... Rc2+ {[%clk
0:01:26.7]} 40. Kf1 {[%clk 0:01:26.6]} 40... Rd8 {[%clk 0:01:26]} 41. e7 {[%clk
0:01:20.8]} 41... Rd1+ {[%clk 0:01:23.2]} 42. Be1 {[%clk 0:01:19]} 42... Rf2+
{[%clk 0:01:23.5]} 43. Kg1 {[%clk 0:01:19.8]} 43... Rxe1# {[%clk 0:01:24.5]} 0-1

[Event "*** Titled Tuesday 3|2 Blitz"]
[Site "Chess.com"]
[Date "2015.12.01"]
[Round "1"]
[White "gumersindo"]
[Black "Konavets"]
[Result "0-1"]
[WhiteElo "2199"]
[BlackElo "2527"]
[TimeControl "180+2"]
[EndTime "17:07:15 PST"]
[Termination "Konavets won by resignation"]

1. d4 {[%clk 0:03:00.6]} 1... b5 {[%clk 0:02:51.4]} 2. e3 {[%clk 0:02:41.5]}
2... Bb7 {[%clk 0:02:52.3]} 3. Nf3 {[%clk 0:02:43.1]} 3... a6 {[%clk 0:02:52.7]}
4. a4 {[%clk 0:02:43]} 4... b4 {[%clk 0:02:53.5]} 5. Nbd2 {[%clk 0:02:43.5]}
5... Nf6 {[%clk 0:02:54.7]} 6. Be2 {[%clk 0:02:44.6]} 6... e6 {[%clk 0:02:55.9]}
7. O-O {[%clk 0:02:46]} 7... g5 {[%clk 0:02:56.8]} 8. c4 {[%clk 0:02:44.9]} 8...
g4 {[%clk 0:02:56.9]} 9. Ne1 {[%clk 0:02:44.2]} 9... h5 {[%clk 0:02:57.8]} 10.
f3 {[%clk 0:02:43.1]} 10... g3 {[%clk 0:02:57.2]} 11. h3 {[%clk 0:02:42.2]}
11... d5 {[%clk 0:02:56.9]} 12. c5 {[%clk 0:02:37.2]} 12... Nc6 {[%clk
0:02:57.2]} 13. Nd3 {[%clk 0:02:38.1]} 13... Nd7 {[%clk 0:02:55.8]} 14. f4
{[%clk 0:02:38.2]} 14... h4 {[%clk 0:02:54.6]} 15. Nf3 {[%clk 0:02:35.3]} 15...
f5 {[%clk 0:02:55.3]} 16. Nfe5 {[%clk 0:02:33.8]} 16... Ndxe5 {[%clk 0:02:55.3]}
17. fxe5 {[%clk 0:02:34.7]} 17... Qd7 {[%clk 0:02:52.9]} 18. Bh5+ {[%clk
0:02:34.9]} 18... Kd8 {[%clk 0:02:53.9]} 19. Nf4 {[%clk 0:02:34]} 19... a5
{[%clk 0:02:54.8]} 20. Be2 {[%clk 0:02:20.1]} 20... Bh6 {[%clk 0:02:53.5]} 21.
Bb5 {[%clk 0:02:16.8]} 21... Kc8 {[%clk 0:02:54.5]} 22. Qd3 {[%clk 0:02:16.7]}
22... Kb8 {[%clk 0:02:54.6]} 23. Bd2 {[%clk 0:02:16.7]} 23... Rg8 {[%clk
0:02:53.4]} 24. Rac1 {[%clk 0:02:14.6]} 24... Qe7 {[%clk 0:02:54.4]} 25. Nh5
{[%clk 0:01:58.2]} 25... Ka7 {[%clk 0:02:49.3]} 26. Nf6 {[%clk 0:01:55.2]} 26...
Rg6 {[%clk 0:02:50]} 27. Nh5 {[%clk 0:01:46.3]} 27... Rag8 {[%clk 0:02:50]} 28.
Nf4 {[%clk 0:01:47.3]} 28... R6g7 {[%clk 0:02:50.6]} 29. Ra1 {[%clk 0:01:45.2]}
29... Nb8 {[%clk 0:02:48.8]} 30. Qe2 {[%clk 0:01:43.3]} 30... c6 {[%clk
0:02:48.9]} 31. Bd3 {[%clk 0:01:43]} 31... Nd7 {[%clk 0:02:49.9]} 32. Qe1 {[%clk
0:01:39.7]} 32... Nf8 {[%clk 0:02:50.2]} 33. Bxb4 {[%clk 0:01:36.4]} 33... axb4
{[%clk 0:02:51.2]} 34. Qxb4 {[%clk 0:01:38]} 34... Qd8 {[%clk 0:02:52.3]} 35. a5
{[%clk 0:01:38.2]} 35... Bxf4 {[%clk 0:02:46]} 36. exf4 {[%clk 0:01:38.1]} 36...
Bc8 {[%clk 0:02:42.9]} 37. a6 {[%clk 0:01:36.2]} 37... Qc7 {[%clk 0:02:43.5]}
38. Rfc1 {[%clk 0:01:36.6]} 38... Qb8 {[%clk 0:02:44.3]} 39. Qa3 {[%clk
0:01:36.7]} 39... Ng6 {[%clk 0:02:44.4]} 40. Rc3 {[%clk 0:01:33.7]} 40... Nxf4
{[%clk 0:02:31.4]} 41. Rb3 {[%clk 0:01:32.7]} 41... Bd7 {[%clk 0:02:30.4]} 42.
Rxb8 {[%clk 0:01:23.4]} 42... Rxb8 {[%clk 0:02:32.3]} 43. Bf1 {[%clk 0:01:23.8]}
43... Be8 {[%clk 0:02:32.5]} 44. b4 {[%clk 0:01:22.7]} 44... Ng6 {[%clk
0:02:27]} 45. b5 {[%clk 0:01:18.4]} 45... cxb5 {[%clk 0:02:28.1]} 46. c6 {[%clk
0:01:19.5]} 46... Bxc6 {[%clk 0:02:29.2]} 47. Qc5+ {[%clk 0:01:19.5]} 47... Rb6
{[%clk 0:02:30.3]} 48. Be2 {[%clk 0:01:15.9]} 48... Rd7 {[%clk 0:02:26.3]} 49.
Bh5 {[%clk 0:01:16]} 49... Nf4 {[%clk 0:02:25.2]} 50. Be8 {[%clk 0:01:15.2]}
50... Rc7 {[%clk 0:02:21.9]} 51. Qd6 {[%clk 0:01:14.6]} 51... Rc8 {[%clk
0:02:17.5]} 52. Qe7+ {[%clk 0:01:12.3]} 52... Ka8 {[%clk 0:02:17.5]} 53. Bxc6+
{[%clk 0:01:11.4]} 53... Rcxc6 {[%clk 0:02:18.4]} 54. Qf8+ {[%clk 0:01:05.1]}
54... Rb8 {[%clk 0:02:17]} 55. Qe7 {[%clk 0:01:04.3]} 55... b4 {[%clk
0:02:11.9]} 56. a7 {[%clk 0:01:04.3]} 56... Rbc8 {[%clk 0:02:13.1]} 0-1

[Event "*** Titled Tuesday 3|2 Blitz"]
[Site "Chess.com"]
[Date "2015.12.01"]
[Round "1"]
[White "Po6Don"]
[Black "MisaPap"]
[Result "0-1"]
[WhiteElo "1994"]
[BlackElo "2348"]
[TimeControl "180+2"]
[EndTime "17:07:42 PST"]
[Termination "MisaPap won on time"]

1. e4 {[%clk 0:02:55.1]} 1... c5 {[%clk 0:02:58.4]} 2. c3 {[%clk 0:02:54.7]}
2... g6 {[%clk 0:02:57.8]} 3. d4 {[%clk 0:02:53.6]} 3... cxd4 {[%clk 0:02:58.7]}
4. cxd4 {[%clk 0:02:55.5]} 4... d5 {[%clk 0:02:59.4]} 5. e5 {[%clk 0:02:56.3]}
5... Nc6 {[%clk 0:02:59.2]} 6. Nf3 {[%clk 0:02:54.8]} 6... Nh6 {[%clk
0:02:59.8]} 7. h3 {[%clk 0:02:41.3]} 7... Bg7 {[%clk 0:02:57.1]} 8. Nc3 {[%clk
0:02:39.7]} 8... O-O {[%clk 0:02:57]} 9. Bf4 {[%clk 0:02:34]} 9... f6 {[%clk
0:02:56.5]} 10. Qd2 {[%clk 0:02:32.7]} 10... Nf7 {[%clk 0:02:53.3]} 11. exf6
{[%clk 0:02:14.2]} 11... exf6 {[%clk 0:02:53.5]} 12. Be2 {[%clk 0:02:12.1]}
12... Be6 {[%clk 0:02:52.7]} 13. O-O {[%clk 0:02:12.8]} 13... Nd6 {[%clk
0:02:53.2]} 14. Rfe1 {[%clk 0:02:10.9]} 14... Re8 {[%clk 0:02:53.5]} 15. Rac1
{[%clk 0:02:08.7]} 15... Ne4 {[%clk 0:02:49.7]} 16. Qd1 {[%clk 0:01:54.9]} 16...
Qd7 {[%clk 0:02:43.8]} 17. Bd3 {[%clk 0:01:48.6]} 17... f5 {[%clk 0:02:40.5]}
18. Bb5 {[%clk 0:01:42]} 18... a6 {[%clk 0:02:30.5]} 19. Bxc6 {[%clk 0:01:35.4]}
19... bxc6 {[%clk 0:02:30.7]} 20. Ne5 {[%clk 0:01:36.1]} 20... Qb7 {[%clk
0:02:31]} 21. Nxe4 {[%clk 0:01:34.4]} 21... dxe4 {[%clk 0:02:30.7]} 22. b3
{[%clk 0:01:15.9]} 22... Bd5 {[%clk 0:02:27.8]} 23. Nc4 {[%clk 0:01:10.5]} 23...
Red8 {[%clk 0:02:27.4]} 24. Be5 {[%clk 0:01:03.5]} 24... Bh6 {[%clk 0:02:22.2]}
25. Rc3 {[%clk 0:01:00.8]} 25... c5 {[%clk 0:02:14.2]} 26. Nd6 {[%clk
0:00:56.1]} 26... Qe7 {[%clk 0:02:13.2]} 27. Rxc5 {[%clk 0:00:33.9]} 27... Rxd6
{[%clk 0:02:12.1]} 28. Bxd6 {[%clk 0:00:35.8]} 28... Qxd6 {[%clk 0:02:12.5]} 29.
Qc2 {[%clk 0:00:36.7]} 29... Rd8 {[%clk 0:02:06.3]} 30. Rc8 {[%clk 0:00:37]}
30... Bg7 {[%clk 0:02:05.7]} 31. Rd1 {[%clk 0:00:34.9]} 31... h5 {[%clk
0:02:02.9]} 32. Qc5 {[%clk 0:00:33.5]} 32... Qd7 {[%clk 0:01:48.4]} 33. Rc7
{[%clk 0:00:34.8]} 33... Qe6 {[%clk 0:01:44.1]} 34. Re7 {[%clk 0:00:33.7]} 34...
Qd6 {[%clk 0:01:37.3]} 35. Re8+ {[%clk 0:00:23.4]} 35... Kh7 {[%clk 0:01:37.4]}
36. Rxd8 {[%clk 0:00:18.3]} 36... Qxd8 {[%clk 0:01:37.3]} 37. Rc1 {[%clk
0:00:16.8]} 37... f4 {[%clk 0:01:36.3]} 38. Qa7 {[%clk 0:00:12.6]} 38... e3
{[%clk 0:01:30]} 39. Rc7 {[%clk 0:00:13.6]} 39... Qf6 {[%clk 0:01:29.1]} 40.
Qxa6 {[%clk 0:00:07.4]} 40... Qxa6 {[%clk 0:01:28.4]} 0-1